fUSD/lending_fUSD_20240826
["ID","MTS","AMOUNT","RATE_DAILY","PERIOD"]
[336067984,1724688640928,-158.02986662,0.00010958,2]
[336067986,1724688640937,-321.32382712,0.00010958,2]
[336067988,1724688640948,-642.5,0.00010958,2]
[336067991,1724688640968,-249.95617288,0.00010958,2]
[336067993,1724688640977,-500.0,0.00010958,2]
[336067995,1724688640986,-500.0,0.00010958,2]
[336067997,1724688640995,-1213.78,0.00010958,2]
[336067999,1724688641004,-500.0,0.00010958,2]
[336068001,1724688641013,-500.0,0.00010958,2]
[336068003,1724688641022,-500.0,0.00010958,2]
[336068005,1724688641032,-500.0,0.00010958,2]
[336068007,1724688641041,-500.0,0.00010958,2]
[336068009,1724688641050,-500.0,0.00010958,2]
[336068011,1724688641059,-1234.49445528,0.00010958,2]
[336068013,1724688641070,-345.31554472,0.00010958,2]
[336068015,1724688641079,-1579.81,0.00010958,2]
[336068017,1724688641088,-200.0,0.00010959,2]
[336068019,1724688641097,-200.0,0.00010959,2]
[336068021,1724688641107,-158.43,0.00010959,2]
[336068023,1724688641117,-183.33,0.00010959,2]
[336068024,1724688641126,-159.55,0.00010959,2]
[336068026,1724688641136,-2000.0,0.00010959,2]
[336068028,1724688641146,-160.14,0.00010959,2]
[336068030,1724688641155,-150.0,0.00010959,2]
[336068032,1724688641165,-250.0,0.00010959,2]
[336068034,1724688641174,-442.17,0.00010959,2]
[336068036,1724688641183,-500.0,0.00010964,2]
[336068038,1724688641193,-500.0,0.00010973,2]
[336068040,1724688641202,-500.0,0.00010973,2]
[336068042,1724688641211,-200.0,0.00010973,2]
[336068044,1724688641221,-343.23238297,0.00010973,2]
[336068046,1724688641230,-151.0,0.00010973,2]
[336068048,1724688641239,-151.0,0.00010973,2]
[336068050,1724688641249,-151.0,0.00010973,2]
[336068052,1724688641258,-10.2420385,0.00010973,2]
[336068054,1724688641270,-140.7579615,0.00010973,2]
[336068056,1724688641279,-151.0,0.00010973,2]
[336068058,1724688641291,-708.2420385,0.00010973,2]
[336068061,1724688641303,-460.94802228,0.00010973,2]
[336068063,1724688641312,-500.0,0.00010974,2]
[336068065,1724688641321,-3781.86,0.00010974,2]
[336068067,1724688641331,-694.31496145,0.00010974,2]
[336068075,1724688641403,-233.79,0.00010974,2]
[336068077,1724688641413,-474.87509933,0.00010974,2]
[336068079,1724688641422,-152.243641,0.00010975,2]
[336068081,1724688641432,-151.0,0.00010975,2]
[336068083,1724688641441,-151.0,0.00010975,2]
[336068086,1724688641451,-151.0,0.00010975,2]
[336068088,1724688641460,-1103.68,0.00010975,2]
[336068090,1724688641470,-151.0,0.00010975,2]
[336068092,1724688641479,-513.55,0.00010975,2]
[336068094,1724688641489,-102.41125967,0.00010975,2]
[336068096,1724688641501,-397.58874033,0.00010975,2]
[336068098,1724688641510,-102.41125967,0.00010975,2]
[336068239,1724688642807,-669.94,0.00010958,2]
[336068241,1724688642818,-669.94,0.00010958,2]
[336068243,1724688642828,-397.58874033,0.00010975,2]
[336068246,1724688642838,-500.0,0.00010975,2]
[336068248,1724688642847,-500.0,0.00010975,2]
[336068250,1724688642858,-1994.54,0.00010975,2]
[336068252,1724688642867,-248.68947203,0.00010975,2]
[336068254,1724688642879,-251.31052797,0.00010975,2]
[336068256,1724688642888,-500.0,0.00010975,2]
[336068258,1724688642898,-500.0,0.00010975,2]
[336068260,1724688642908,-500.0,0.00010975,2]
[336068262,1724688642918,-392.83690403,0.00010975,2]
[336068267,1724688642962,-3640.15163054,0.00010958,2]
[336068534,1724688645656,-500.0,0.00010958,2]
[336068536,1724688645666,-500.0,0.00010958,2]
[336068538,1724688645675,-523.37,0.00010958,2]
[336068540,1724688645687,-523.37,0.00010958,2]
[336068542,1724688645697,-500.0,0.00010958,2]
[336068545,1724688645707,-500.0,0.00010958,2]
[336068547,1724688645717,-500.0,0.00010958,2]
[336068549,1724688645729,-935.54,0.00010958,2]
[336068551,1724688645738,-1155.04320246,0.00010958,2]
[336069259,1724688678238,500.0,8.22e-05,2]
[336069260,1724688678272,500.0,8.22e-05,2]
[336069261,1724688680141,500.0,8.22e-05,2]
[336069262,1724688698205,500.0,8.22e-05,2]
[336069267,1724688747973,307.8,8.219e-05,2]
[336069268,1724688873110,244.5958303,9.962e-05,2]
[336069269,1724688886454,1000.0,9.966e-05,2]
[336069280,1724689129034,174.42,9.944e-05,2]
[336069288,1724689321771,292.41,8.219e-05,2]
[336069289,1724689390032,200.0,9.932e-05,2]
[336069292,1724689536441,561.88444547,9.5e-05,2]
[336069304,1724689659894,223.63,9.921e-05,2]
[336069775,1724689802981,277.78,8.219e-05,2]
[336069810,1724689832015,-10737.84390248,0.00010026,2]
[336069811,1724689832025,-300.0,0.00010096,2]
[336069812,1724689832036,-155.0,0.00010097,2]
[336069813,1724689832047,-150.0,0.00010398,2]
[336069814,1724689832056,-51418.97623552,0.00010399,2]
[336069820,1724689837909,-78797.35803397,0.00010399,2]
[336069821,1724689837919,-780.78627826,0.00010471,2]
[336069822,1724689837930,-277.78,0.00010471,2]
[336069823,1724689837941,-523.48607601,0.00010566,2]
[336069824,1724689837950,-1206.0,0.00010696,2]
[336069825,1724689837959,-904.74,0.00010696,2]
[336069826,1724689837968,-5848.0,0.00010696,2]
[336069827,1724689837978,-1000.0,0.000107,2]
[336069828,1724689837987,-1000.0,0.00010777,2]
[336069829,1724689837997,-12774.3899,0.00010777,2]
[336069830,1724689838006,-19472.0523,0.00010777,2]
[336069831,1724689838015,-15044.69317176,0.0001078,2]
[336069832,1724689838027,-596.08170787,0.0001078,2]
[336069833,1724689838042,-431.02061693,0.0001078,2]
[336069834,1724689838062,-2087.21303329,0.0001078,2]
[336069835,1724689838134,-1138.0,0.00010696,2]
[336069836,1724689838144,-343.89383516,0.0001078,2]
[336069837,1724689838257,-869.96684025,0.0001078,2]
[336070033,1724689839839,-6007.80077973,0.0001078,2]
[336070039,1724689839852,-998.486475,0.0001078,2]
[336070043,1724689839863,-391.951146,0.0001078,2]
[336070054,1724689839903,-1458.91842534,0.0001078,2]
[336070074,1724689840095,-2925.98626232,0.0001078,2]
[336070075,1724689840106,-969.65529697,0.0001078,2]
[336070076,1724689840128,-3015.37057037,0.0001078,2]
[336070077,1724689840190,-79453.25159359,0.0001078,2]
[336070078,1724689840205,-4125.98200796,0.0001078,2]
[336070369,1724689842932,-304.913,0.00010696,2]
[336070372,1724689842943,-21402.09852405,0.0001078,2]
[336070374,1724689842953,-740.95811436,0.00010852,2]
[336070376,1724689842963,-25233.11,0.00010858,2]
[336070378,1724689842972,-989.97211812,0.00010858,2]
[336070380,1724689842981,-7500.0,0.00010858,2]
[336070382,1724689842991,-3000.0,0.0001087,2]
[336070384,1724689843000,-692.2462555,0.00010871,2]
[336070386,1724689843010,-2299.422,0.00010875,2]
[336070388,1724689843019,-2464.98710796,0.00010876,2]
[336070390,1724689843028,-2464.98710796,0.00010877,2]
[336070392,1724689843041,-2464.98710796,0.00010878,2]
[336070394,1724689843050,-2464.98710796,0.00010879,2]
[336070396,1724689843061,-2464.98710796,0.0001088,2]
[336070398,1724689843072,-961.30024561,0.00010899,2]
[336070400,1724689843083,-961.30024553,0.00010899,2]
[336070402,1724689843093,-961.30024553,0.00010899,2]
[336070404,1724689843102,-961.30024553,0.00010899,2]
[336070406,1724689843113,-961.30024553,0.00010899,2]
[336070408,1724689843123,-961.30024553,0.00010899,2]
[336070410,1724689843132,-961.30024553,0.00010899,2]
[336070412,1724689843142,-961.30024553,0.00010899,2]
[336070414,1724689843151,-961.30024553,0.00010899,2]
[336070417,1724689843161,-961.30024553,0.000109,2]
[336070419,1724689843171,-150.83,0.00010948,2]
[336070422,1724689843183,-779.46004052,0.00010955,2]
[336070424,1724689843192,-2727.13378422,0.00010957,2]
[336070426,1724689843201,-1031.54405097,0.00010957,3]
[336070428,1724689843211,-6658.74567235,0.00010957,2]
[336070430,1724689843220,-159.949,0.00010957,2]
[336070432,1724689843230,-775.0,0.00010958,2]
[336070434,1724689843240,-511.5039459,0.00010958,2]
[336070436,1724689843249,-496.59728672,0.00010958,2]
[336070438,1724689843259,-300.0,0.00010958,2]
[336070440,1724689843268,-500.0,0.00010958,2]
[336070442,1724689843277,-208.83191032,0.00010958,2]
[336070444,1724689843286,-502.75644757,0.00010958,2]
[336070446,1724689843295,-151.0,0.00010958,2]
[336070448,1724689843304,-151.0,0.00010958,2]
[336070450,1724689843314,-151.0,0.00010958,2]
[336070453,1724689843323,-151.0,0.00010958,2]
[336070455,1724689843332,-501.07965549,0.00010958,2]
[336070457,1724689843342,-488.0781542,0.00010958,2]
[336070459,1724689843350,-507.6060872,0.00010958,2]
[336070460,1724689843359,-478.3668684,0.00010958,2]
[336070462,1724689843368,-512.75917372,0.00010958,2]
[336070464,1724689843377,-500.0,0.00010958,2]
[336070466,1724689843386,-500.0,0.00010958,2]
[336070468,1724689843395,-500.0,0.00010958,2]
[336070470,1724689843405,-508.54281952,0.00010958,2]
[336070472,1724689843415,-517.43124738,0.00010958,2]
[336070475,1724689843424,-508.33147498,0.00010958,2]
[336070478,1724689843435,-508.24684196,0.00010958,2]
[336070480,1724689843444,-500.0,0.00010958,2]
[336070484,1724689843454,-508.4216135,0.00010958,2]
[336070487,1724689843463,-188.55704879,0.00010958,2]
[336070490,1724689843471,-521.31347055,0.00010958,2]
[336070492,1724689843481,-205.05629645,0.00010958,2]
[336070494,1724689843490,-512.61767117,0.00010958,2]
[336070496,1724689843499,-514.59568679,0.00010958,2]
[336070498,1724689843509,-164.134153,0.00010958,2]
[336070500,1724689843519,-500.0,0.00010958,2]
[336070503,1724689843530,-151.0,0.00010958,2]
[336070505,1724689843540,-151.0,0.00010958,2]
[336070506,1724689843549,-151.0,0.00010958,2]
[336070509,1724689843559,-1991.98,0.00010958,2]
[336070510,1724689843568,-500.0,0.00010958,2]
[336070512,1724689843578,-500.0,0.00010958,2]
[336070515,1724689843588,-555.44188582,0.00010958,2]
[336070517,1724689843597,-151.0,0.00010958,2]
[336070519,1724689843606,-151.0,0.00010958,2]
[336070520,1724689843615,-152.796726,0.00010958,2]
[336070522,1724689843624,-151.0,0.00010958,2]
[336070524,1724689843634,-1212.02,0.00010958,2]
[336070526,1724689843643,-1212.02,0.00010958,2]
[336070528,1724689843652,-151.0,0.00010958,2]
[336070531,1724689843662,-151.0,0.00010958,2]
[336070532,1724689843671,-963.64,0.00010958,2]
[336070535,1724689843682,-963.64,0.00010958,2]
[336070537,1724689843694,-500.0,0.00010958,2]
[336070539,1724689843711,-1051.77,0.00010958,2]
[336070541,1724689843720,-1051.77,0.00010958,2]
[336070543,1724689843730,-500.0,0.00010958,2]
[336070544,1724689843739,-500.0,0.00010958,2]
[336070546,1724689843749,-2544.94,0.00010958,2]
[336070548,1724689843758,-2544.94,0.00010958,2]
[336070550,1724689843767,-500.0,0.00010958,2]
[336070552,1724689843777,-1303.09,0.00010958,2]
[336070554,1724689843786,-1303.09,0.00010958,2]
[336070556,1724689843795,-500.0,0.00010958,2]
[336070558,1724689843805,-500.0,0.00010958,2]
[336070560,1724689843814,-500.0,0.00010958,5]
[336070562,1724689843824,-500.0,0.00010958,2]
[336070564,1724689843833,-500.0,0.00010958,5]
[336070566,1724689843843,-500.0,0.00010958,2]
[336070568,1724689843852,-500.0,0.00010958,2]
[336070570,1724689843862,-500.0,0.00010958,2]
[336070572,1724689843871,-644.42,0.00010958,2]
[336070574,1724689843881,-644.42,0.00010958,2]
[336070576,1724689843891,-203.61762094,0.00010958,2]
[336070578,1724689843901,-158.03731594,0.00010958,2]
[336070580,1724689843911,-500.0,0.00010958,2]
[336070582,1724689843921,-500.0,0.00010958,2]
[336070584,1724689843930,-500.0,0.00010958,2]
[336070586,1724689843940,-500.0,0.00010958,2]
[336070588,1724689843959,-500.0,0.00010958,2]
[336070590,1724689843969,-500.0,0.00010958,2]
[336070592,1724689843978,-500.0,0.00010958,2]
[336070594,1724689843987,-1346.07,0.00010958,2]
[336070595,1724689843997,-1346.07,0.00010958,2]
[336070596,1724689844006,-500.0,0.00010958,2]
[336070597,1724689844016,-500.0,0.00010958,2]
[336070598,1724689844025,-500.0,0.00010958,2]
[336070599,1724689844035,-500.0,0.00010958,2]
[336070600,1724689844048,-500.0,0.00010958,2]
[336070601,1724689844057,-500.0,0.00010958,2]
[336070602,1724689844066,-500.0,0.00010958,2]
[336070603,1724689844076,-500.0,0.00010958,2]
[336070604,1724689844086,-500.0,0.00010958,2]
[336070605,1724689844095,-500.0,0.00010958,2]
[336070606,1724689844105,-500.0,0.00010958,2]
[336070607,1724689844115,-500.0,0.00010958,2]
[336070608,1724689844126,-524.14,0.00010958,2]
[336070609,1724689844136,-500.0,0.00010958,2]
[336070611,1724689844145,-500.0,0.00010958,2]
[336070612,1724689844154,-500.0,0.00010958,2]
[336070614,1724689844164,-500.0,0.00010958,2]
[336070616,1724689844173,-500.0,0.00010958,2]
[336070618,1724689844182,-500.0,0.00010958,2]
[336070620,1724689844193,-500.0,0.00010958,2]
[336070622,1724689844202,-500.0,0.00010958,2]
[336070623,1724689844212,-611.40767886,0.00010958,2]
[336070625,1724689844222,-316.79476724,0.00010958,2]
[336070627,1724689844231,-500.0,0.00010958,2]
[336070650,1724689844444,-507.5698991,0.00010958,2]
[336070652,1724689844453,-500.0,0.00010958,2]
[336070654,1724689844463,-500.0,0.00010958,2]
[336070656,1724689844472,-500.66290491,0.00010958,2]
[336070658,1724689844481,-633.75,0.00010958,2]
[336070660,1724689844491,-633.75,0.00010958,2]
[336070662,1724689844500,-516.45452883,0.00010958,2]
[336070664,1724689844510,-500.0,0.00010958,2]
[336070666,1724689844519,-650.17,0.00010958,2]
[336070668,1724689844528,-650.17,0.00010958,2]
[336070670,1724689844537,-500.0,0.00010958,2]
[336070672,1724689844546,-235.1625566,0.00010958,2]
[336070674,1724689844556,-500.0,0.00010958,2]
[336070676,1724689844565,-500.0,0.00010958,2]
[336070678,1724689844575,-500.0,0.00010958,2]
[336070680,1724689844586,-500.0,0.00010958,2]
[336070682,1724689844595,-500.0,0.00010958,2]
[336070684,1724689844604,-500.0,0.00010958,2]
[336070686,1724689844614,-500.0,0.00010958,2]
[336070688,1724689844624,-499.9641909,0.00010958,2]
[336070690,1724689844634,-500.0,0.00010958,2]
[336070692,1724689844644,-500.0,0.00010958,2]
[336070694,1724689844653,-500.0,0.00010958,2]
[336070696,1724689844663,-500.0,0.00010958,2]
[336070698,1724689844672,-500.0,0.00010958,2]
[336070700,1724689844682,-959.1,0.00010958,2]
[336070703,1724689844694,-959.1,0.00010958,2]
[336070705,1724689844703,-500.0,0.00010958,2]
[336070707,1724689844711,-500.0,0.00010958,2]
[336070709,1724689844721,-151.0,0.00010958,2]
[336070711,1724689844731,-151.0,0.00010958,2]
[336070713,1724689844740,-151.0,0.00010958,2]
[336070715,1724689844749,-500.0,0.00010958,2]
[336070717,1724689844758,-500.0,0.00010958,2]
[336070719,1724689844768,-500.0,0.00010958,2]
[336070721,1724689844777,-500.0,0.00010958,2]
[336070723,1724689844787,-500.0,0.00010958,2]
[336070725,1724689844797,-500.0,0.00010958,2]
[336070727,1724689844807,-500.0,0.00010958,2]
[336070729,1724689844817,-500.0,0.00010958,2]
[336070731,1724689844827,-500.0,0.00010958,2]
[336070733,1724689844837,-151.209086,0.00010958,2]
[336070735,1724689844847,-851.23,0.00010958,2]
[336070737,1724689844856,-500.0,0.00010958,2]
[336070739,1724689844869,-500.0,0.00010958,2]
[336070741,1724689844880,-494.47475997,0.00010958,2]
[336070743,1724689844889,-500.0,0.00010958,2]
[336070746,1724689844900,-500.0,0.00010958,2]
[336070748,1724689844909,-500.0,0.00010958,2]
[336070750,1724689844920,-500.0,0.00010958,2]
[336070752,1724689844930,-500.0,0.00010958,2]
[336070754,1724689844940,-500.0,0.00010958,2]
[336070756,1724689844951,-500.0,0.00010958,2]
[336070758,1724689844960,-500.0,0.00010958,2]
[336070760,1724689844970,-500.0,0.00010958,2]
[336070762,1724689844979,-500.0,0.00010958,2]
[336070764,1724689844988,-500.0,0.00010958,2]
[336070766,1724689844998,-464.44575418,0.00010958,2]
[336070768,1724689845007,-500.0,0.00010958,2]
[336070769,1724689845016,-500.0,0.00010958,2]
[336070771,1724689845026,-500.0,0.00010958,2]
[336070773,1724689845035,-500.0,0.00010958,2]
[336070775,1724689845049,-500.0,0.00010958,2]
[336070777,1724689845058,-500.0,0.00010958,2]
[336070779,1724689845068,-500.0,0.00010958,2]
[336070781,1724689845078,-500.0,0.00010958,2]
[336070783,1724689845088,-500.0,0.00010958,2]
[336070786,1724689845097,-500.0,0.00010958,2]
[336070788,1724689845107,-151.0,0.00010958,2]
[336070790,1724689845119,-151.0,0.00010958,2]
[336070792,1724689845128,-151.0,0.00010958,2]
[336070794,1724689845138,-151.0,0.00010958,2]
[336070796,1724689845147,-151.0,0.00010958,2]
[336070797,1724689845156,-500.0,0.00010958,2]
[336070799,1724689845166,-151.0,0.00010958,2]
[336070801,1724689845175,-151.0,0.00010958,2]
[336070803,1724689845184,-500.0,0.00010958,2]
[336070805,1724689845194,-151.0,0.00010958,2]
[336070807,1724689845203,-151.49304,0.00010958,2]
[336070809,1724689845212,-500.0,0.00010958,2]
[336070811,1724689845221,-765.0,0.00010958,2]
[336070813,1724689845231,-500.0,0.00010958,2]
[336070815,1724689845240,-765.0,0.00010958,2]
[336070817,1724689845249,-500.0,0.00010958,2]
[336070819,1724689845258,-500.0,0.00010958,2]
[336070821,1724689845267,-500.0,0.00010958,2]
[336070823,1724689845277,-500.0,0.00010958,2]
[336070825,1724689845286,-500.0,0.00010958,2]
[336070827,1724689845295,-695.71,0.00010958,2]
[336070829,1724689845304,-695.71,0.00010958,2]
[336070831,1724689845313,-500.0,0.00010958,2]
[336070833,1724689845323,-500.0,0.00010958,2]
[336070835,1724689845332,-500.0,0.00010958,2]
[336070837,1724689845341,-500.0,0.00010958,2]
[336070839,1724689845351,-500.0,0.00010958,2]
[336070841,1724689845360,-151.0,0.00010958,2]
[336070843,1724689845369,-500.0,0.00010958,2]
[336070845,1724689845379,-151.0,0.00010958,2]
[336070847,1724689845388,-574.58170719,0.00010958,2]
[336070849,1724689845398,-151.0,0.00010958,2]
[336070851,1724689845407,-151.0,0.00010958,2]
[336070853,1724689845416,-500.0,0.00010958,2]
[336070855,1724689845425,-500.0,0.00010958,2]
[336070857,1724689845434,-500.0,0.00010958,2]
[336070859,1724689845444,-196.09009774,0.00010958,2]
[336070861,1724689845453,-500.0,0.00010958,2]
[336070863,1724689845463,-500.0,0.00010958,2]
[336070865,1724689845472,-500.0,0.00010958,2]
[336070867,1724689845481,-500.0,0.00010958,2]
[336070869,1724689845491,-358.30896952,0.00010958,2]
[336070871,1724689845500,-500.0,0.00010958,2]
[336070873,1724689845510,-500.0,0.00010958,2]
[336070875,1724689845519,-500.0,0.00010958,2]
[336070877,1724689845528,-500.0,0.00010958,2]
[336070879,1724689845537,-500.0,0.00010958,2]
[336070881,1724689845548,-500.0,0.00010958,2]
[336070884,1724689845559,-500.0,0.00010958,2]
[336070886,1724689845570,-620.04,0.00010958,2]
[336070887,1724689845579,-620.04,0.00010958,2]
[336070889,1724689845588,-500.0,0.00010958,2]
[336070892,1724689845597,-205.57759256,0.00010958,2]
[336070894,1724689845606,-500.0,0.00010958,2]
[336070896,1724689845616,-500.0,0.00010958,2]
[336070897,1724689845625,-500.0,0.00010958,2]
[336070900,1724689845635,-500.0,0.00010958,2]
[336070901,1724689845644,-500.0,0.00010958,2]
[336070903,1724689845653,-500.0,0.00010958,2]
[336070906,1724689845663,-500.0,0.00010958,2]
[336070907,1724689845672,-500.0,0.00010958,2]
[336070909,1724689845681,-500.0,0.00010958,2]
[336070912,1724689845691,-524.63,0.00010958,2]
[336070914,1724689845701,-500.0,0.00010958,2]
[336070916,1724689845711,-500.0,0.00010958,2]
[336070918,1724689845720,-500.0,0.00010958,2]
[336070920,1724689845729,-500.0,0.00010958,2]
[336070922,1724689845739,-441.99542145,0.00010958,2]
[336070924,1724689845748,-500.0,0.00010958,2]
[336070926,1724689845758,-942.82,0.00010958,2]
[336070927,1724689845768,-942.82,0.00010958,2]
[336070930,1724689845778,-500.0,0.00010958,2]
[336070932,1724689845787,-500.0,0.00010958,2]
[336070934,1724689845797,-500.0,0.00010958,2]
[336070936,1724689845806,-500.0,0.00010958,2]
[336070938,1724689845815,-500.0,0.00010958,2]
[336070940,1724689845826,-151.0,0.00010958,2]
[336070942,1724689845837,-151.0,0.00010958,2]
[336070944,1724689845847,-151.0,0.00010958,2]
[336070946,1724689845856,-151.0,0.00010958,2]
[336070948,1724689845866,-151.0,0.00010958,2]
[336070950,1724689845875,-500.0,0.00010958,2]
[336070952,1724689845885,-500.0,0.00010958,2]
[336070954,1724689845895,-525.6455552,0.00010958,2]
[336070956,1724689845905,-500.0,0.00010958,2]
[336070958,1724689845914,-500.0,0.00010958,2]
[336070960,1724689845923,-500.0,0.00010958,2]
[336070962,1724689845932,-500.0,0.00010958,2]
[336070963,1724689845941,-187.54816203,0.00010958,2]
[336070965,1724689845951,-500.0,0.00010958,2]
[336070967,1724689845960,-500.0,0.00010958,2]
[336070969,1724689845970,-500.0,0.00010958,2]
[336070971,1724689845979,-500.0,0.00010958,2]
[336070973,1724689845988,-500.0,0.00010958,2]
[336070975,1724689845997,-151.0,0.00010958,2]
[336070977,1724689846007,-151.0,0.00010958,2]
[336070979,1724689846016,-151.0,0.00010958,2]
[336070981,1724689846026,-151.385325,0.00010958,2]
[336070983,1724689846036,-500.0,0.00010958,2]
[336070985,1724689846048,-500.0,0.00010958,2]
[336070987,1724689846057,-500.0,0.00010958,2]
[336070989,1724689846067,-500.0,0.00010958,2]
[336070991,1724689846076,-500.0,0.00010958,2]
[336070993,1724689846086,-500.0,0.00010958,2]
[336070995,1724689846095,-500.0,0.00010958,2]
[336070997,1724689846104,-500.0,0.00010958,2]
[336070999,1724689846114,-552.04647086,0.00010958,2]
[336071001,1724689846125,-500.0,0.00010958,2]
[336071003,1724689846134,-500.0,0.00010958,2]
[336071005,1724689846144,-500.0,0.00010958,2]
[336071007,1724689846153,-151.0,0.00010958,2]
[336071009,1724689846162,-500.0,0.00010958,2]
[336071011,1724689846172,-151.0,0.00010958,2]
[336071013,1724689846181,-500.0,0.00010958,2]
[336071015,1724689846190,-151.0,0.00010958,2]
[336071017,1724689846201,-151.0,0.00010958,2]
[336071019,1724689846211,-500.0,0.00010958,2]
[336071021,1724689846220,-500.0,0.00010958,2]
[336071023,1724689846229,-500.0,0.00010958,2]
[336071025,1724689846238,-500.0,0.00010958,2]
[336071027,1724689846247,-500.0,0.00010958,2]
[336071029,1724689846257,-151.077315,0.00010958,2]
[336071032,1724689846266,-500.0,0.00010958,2]
[336071035,1724689846276,-500.0,0.00010958,2]
[336071037,1724689846285,-500.0,0.00010958,2]
[336071039,1724689846297,-500.0,0.00010958,2]
[336071041,1724689846306,-500.0,0.00010958,2]
[336071042,1724689846315,-151.0,0.00010958,2]
[336071045,1724689846325,-152.266505,0.00010958,2]
[336071047,1724689846334,-151.0,0.00010958,2]
[336071049,1724689846349,-500.0,0.00010958,2]
[336071052,1724689846362,-151.0,0.00010958,2]
[336071054,1724689846372,-151.0,0.00010958,2]
[336071056,1724689846382,-151.0,0.00010958,2]
[336071058,1724689846392,-500.0,0.00010958,2]
[336071060,1724689846402,-500.0,0.00010958,2]
[336071062,1724689846412,-151.0,0.00010958,2]
[336071064,1724689846421,-151.0,0.00010958,2]
[336071066,1724689846432,-567.95,0.00010958,2]
[336071068,1724689846442,-500.0,0.00010958,2]
[336071070,1724689846454,-567.95,0.00010958,2]
[336071073,1724689846463,-500.0,0.00010958,2]
[336071075,1724689846474,-567.95,0.00010958,2]
[336071077,1724689846485,-500.0,0.00010958,2]
[336071079,1724689846494,-151.0,0.00010958,2]
[336071081,1724689846505,-203.713726,0.00010958,2]
[336071083,1724689846515,-1484.91,0.00010958,2]
[336071085,1724689846525,-1484.91,0.00010958,2]
[336071087,1724689846534,-1484.91,0.00010958,2]
[336071089,1724689846544,-500.0,0.00010958,2]
[336071091,1724689846553,-500.0,0.00010958,2]
[336071093,1724689846563,-500.0,0.00010958,2]
[336071095,1724689846572,-500.0,0.00010958,2]
[336071097,1724689846582,-500.0,0.00010958,2]
[336071099,1724689846591,-500.0,0.00010958,2]
[336071101,1724689846601,-500.0,0.00010958,2]
[336071104,1724689846611,-500.0,0.00010958,2]
[336071106,1724689846621,-500.0,0.00010958,2]
[336071108,1724689846631,-500.0,0.00010958,2]
[336071110,1724689846640,-572.72324945,0.00010958,2]
[336071112,1724689846650,-637.23057289,0.00010958,2]
[336071114,1724689846660,-500.0,0.00010958,2]
[336071116,1724689846671,-500.0,0.00010958,2]
[336071118,1724689846680,-500.0,0.00010958,2]
[336071120,1724689846690,-500.0,0.00010958,2]
[336071122,1724689846701,-500.0,0.00010958,2]
[336071124,1724689846710,-500.0,0.00010958,2]
[336071126,1724689846720,-500.0,0.00010958,2]
[336071128,1724689846730,-500.0,0.00010958,2]
[336071130,1724689846739,-500.0,0.00010958,2]
[336071132,1724689846749,-500.0,0.00010958,2]
[336071134,1724689846758,-500.0,0.00010958,2]
[336071136,1724689846767,-2229.77,0.00010958,2]
[336071138,1724689846777,-2229.77,0.00010958,2]
[336071140,1724689846786,-500.0,0.00010958,2]
[336071142,1724689846796,-3413.41,0.00010958,2]
[336071144,1724689846806,-3413.41,0.00010958,2]